lending/lending_fUSD_20240411
["ID","MTS","AMOUNT","RATE_DAILY","PERIOD"]
[322134168,1712835052515,-4891.33,0.00032876,2]
[322134169,1712835052524,-500.0,0.00032876,2]
[322134170,1712835052533,-500.0,0.00032876,2]
[322134171,1712835052542,-500.0,0.00032876,2]
[322134172,1712835052551,-8485.43,0.00032876,2]
[322134173,1712835052560,-7008.12,0.00032876,2]
[322134174,1712835052569,-986.62,0.00032876,2]
[322134175,1712835052578,-1550.86,0.00032876,2]
[322134176,1712835052587,-651.89,0.00032876,2]
[322134177,1712835052596,-5080.53,0.00032876,2]
[322134178,1712835052606,-500.0,0.00032876,2]
[322134179,1712835052615,-500.0,0.00032876,2]
[322134180,1712835052626,-500.0,0.00032876,2]
[322134181,1712835052635,-500.0,0.00032876,2]
[322134182,1712835052646,-500.0,0.00032876,2]
[322134183,1712835052655,-500.0,0.00032876,2]
[322134184,1712835052664,-1225.69,0.00032876,2]
[322134185,1712835052673,-4843.85,0.00032876,2]
[322134186,1712835052683,-3839.06,0.00032876,2]
[322134187,1712835052692,-1073.08,0.00032876,2]
[322134188,1712835052701,-500.0,0.00032876,2]
[322134189,1712835052710,-6775.55,0.00032876,2]
[322134190,1712835052720,-500.0,0.00032876,2]
[322134191,1712835052729,-4047.41,0.00032876,2]
[322134192,1712835052739,-500.0,0.00032876,2]
[322134193,1712835052748,-500.0,0.00032876,2]
[322134194,1712835052758,-500.0,0.00032876,2]
[322134195,1712835052768,-500.0,0.00032876,2]
[322134196,1712835052779,-3477.46,0.00032876,2]
[322134197,1712835052788,-556.37,0.00032876,2]
[322134198,1712835052797,-500.0,0.00032876,2]
[322134199,1712835052807,-500.0,0.00032876,2]
[322134200,1712835052816,-500.0,0.00032876,2]
[322134201,1712835052826,-8708.2,0.00032876,2]
[322134202,1712835052836,-500.0,0.00032876,2]
[322134203,1712835052845,-222.97763607,0.00032876,2]
[322134204,1712835052856,-3289.47,0.00032876,2]
[322134205,1712835052865,-291.36816732,0.00032876,2]
[322134206,1712835052875,-500.0,0.00032876,2]
[322134207,1712835052884,-500.0,0.00032876,2]
[322134208,1712835052893,-500.0,0.00032876,2]
[322134209,1712835052902,-500.0,0.00032876,2]
[322134210,1712835052912,-500.0,0.00032876,2]
[322134211,1712835052921,-500.0,0.00032876,2]
[322134212,1712835052930,-651.05,0.00032876,2]
[322134213,1712835052939,-500.0,0.00032876,2]
[322134214,1712835052949,-3274.71,0.00032876,2]
[322134215,1712835052958,-500.0,0.00032876,2]
[322134216,1712835052967,-323.73981477,0.00032876,2]
[322134217,1712835052977,-5635.83,0.00032876,2]
[322134218,1712835052987,-2428.26,0.00032876,2]
[322134219,1712835052997,-505.17929831,0.00032876,2]
[322134220,1712835053006,-592.17,0.00032876,2]
[322134221,1712835053015,-3262.29,0.00032876,2]
[322134222,1712835053024,-500.0,0.00032876,2]
[322134223,1712835053033,-500.0,0.00032876,2]
[322134224,1712835053053,-500.91832424,0.00032876,2]
[322134225,1712835053064,-623.35,0.00032876,2]
[322134226,1712835053073,-500.0,0.00032876,2]
[322134227,1712835053082,-764.46,0.00032876,2]
[322134228,1712835053091,-500.0,0.00032876,2]
[322134229,1712835053100,-500.0,0.00032876,2]
[322134230,1712835053110,-203.76296318,0.00032876,2]
[322134231,1712835053119,-1314.34,0.00032876,2]
[322134232,1712835053130,-500.0,0.00032876,2]
[322134233,1712835053138,-748.6,0.00032876,2]
[322134234,1712835053147,-500.0,0.00032876,2]
[322134235,1712835053156,-500.0,0.00032876,2]
[322134236,1712835053166,-4798.05,0.00032876,2]
[322134237,1712835053175,-500.0,0.00032876,2]
[322134238,1712835053184,-2592.43,0.00032876,2]
[322134239,1712835053193,-500.0,0.00032876,2]
[322134240,1712835053202,-518.4,0.00032876,2]
[322134241,1712835053211,-9624.71,0.00032876,2]
[322134242,1712835053220,-1249.17,0.00032876,2]
[322134243,1712835053230,-500.0,0.00032876,2]
[322134244,1712835053239,-1014.82,0.00032876,2]
[322134245,1712835053248,-500.0,0.00032876,2]
[322134246,1712835053257,-500.0,0.00032876,2]
[322134247,1712835053266,-34846.84,0.00032876,2]
[322134248,1712835053275,-168.08893542,0.00032876,2]
[322134249,1712835053284,-500.0,0.00032876,2]
[322134250,1712835053294,-645.91,0.00032876,2]
[322134251,1712835053303,-8980.84,0.00032876,2]
[322134252,1712835053313,-500.0,0.00032876,2]
[322134253,1712835053322,-500.0,0.00032876,2]
[322134254,1712835053335,-500.0,0.00032876,2]
[322134255,1712835053344,-2927.69,0.00032876,2]
[322134256,1712835053353,-513.9,0.00032876,2]
[322134257,1712835053362,-550.79709322,0.00032876,2]
[322134258,1712835053372,-500.0,0.00032876,2]
[322134259,1712835053381,-500.0,0.00032876,2]
[322134260,1712835053390,-621.78,0.00032876,2]
[322134261,1712835053399,-500.0,0.00032876,2]
[322134262,1712835053410,-500.0,0.00032876,2]
[322134263,1712835053419,-18011.47848216,0.00032876,2]
[322134264,1712835053437,-10745.96151784,0.00032876,2]
[322134265,1712835053446,-500.0,0.00032876,2]
[322134266,1712835053454,-500.0,0.00032876,2]
[322134267,1712835053463,-500.0,0.00032876,2]
[322134268,1712835053473,-500.0,0.00032876,2]
[322134269,1712835053482,-500.0,0.00032876,2]
[322134270,1712835053491,-500.0,0.00032876,2]
[322134271,1712835053500,-399.44041723,0.00032876,2]
[322134272,1712835053516,-100.55958277,0.00032876,2]
[322134273,1712835053525,-662.94,0.00032876,2]
[322134274,1712835053534,-943.53,0.00032876,2]
[322134275,1712835053542,-500.0,0.00032876,2]
[322134276,1712835053551,-500.0,0.00032876,2]
[322134277,1712835053560,-729.78,0.00032876,2]
[322134278,1712835053568,-500.0,0.00032876,2]
[322134279,1712835053577,-1364.16289393,0.00032876,2]
[322134280,1712835053588,-617.93523834,0.00032876,2]
[322134281,1712835053599,-486.67223735,0.00032876,2]
[322134282,1712835053610,-2990.17963038,0.00032876,2]
[322134283,1712835053621,-500.0,0.00032876,2]
[322134284,1712835053630,-1533.23,0.00032876,2]
[322134285,1712835053639,-500.0,0.00032876,2]
[322134286,1712835053648,-500.0,0.00032876,2]
[322134287,1712835053657,-7629.06,0.00032876,2]
[322134288,1712835053666,-500.0,0.00032876,2]
[322134289,1712835053675,-3370.53,0.00032876,2]
[322134290,1712835053684,-500.0,0.00032876,2]
[322134291,1712835053693,-500.0,0.00032876,2]
[322134292,1712835053703,-1396.68,0.00032876,2]
[322134293,1712835053712,-515.57,0.00032876,2]
[322134294,1712835053721,-904.87,0.00032876,2]
[322134295,1712835053730,-157.36,0.00032877,2]
[322134296,1712835053739,-950.38,0.00032883,2]
[322134297,1712835053748,-685.2,0.00032883,2]
[322134298,1712835053758,-306.35,0.00032883,2]
[322134299,1712835053767,-300.0,0.00032883,2]
[322134300,1712835053777,-300.0,0.00032883,2]
[322134301,1712835053786,-150.0,0.00032883,2]
[322134302,1712835053795,-349.13,0.00032883,2]
[322134303,1712835053804,-150.0,0.00032883,2]
[322134304,1712835053815,-150.0,0.00032883,2]
[322134305,1712835053825,-150.0,0.00032883,2]
[322134306,1712835053834,-150.0,0.00032883,2]
[322134307,1712835053844,-150.0,0.00032883,2]
[322134308,1712835053853,-150.0,0.00032883,2]
[322134309,1712835053862,-855.80428758,0.00032937,2]
[322134310,1712835053872,-150.0,0.00032992,2]
[322134311,1712835053881,-1500.0,0.00032994,2]
[322134312,1712835053890,-850.0,0.00033,3]
[322134313,1712835053900,-157.041119,0.00033148,21]
[322134314,1712835053909,-199.69,0.00033165,2]
[322134315,1712835053918,-202.93,0.00033165,2]
[322134316,1712835053927,-3918.179,0.00033204,2]
[322134317,1712835053936,-1342.208,0.00033204,2]
[322134318,1712835053946,-322.75579139,0.00033301,2]
[322134319,1712835053956,-7828.45217165,0.00033345,7]
[322134320,1712835055900,-356.22,0.00019833,2]
[322134321,1712835055913,-180.78036247,0.00019833,2]
[322134322,1712835055924,-500.0,0.00032876,2]
[322134323,1712835055934,-654.5,0.00032876,2]
[322134324,1712835055947,-12740.71963754,0.00033345,7]
[322134325,1712835055960,-364.50411399,0.00033345,7]
[322134326,1712835057140,-267.15818269,0.00032776,2]
[322134327,1712835057150,-495.83007728,0.00032778,2]
[322134328,1712835057160,-500.0,0.00032876,2]
[322134329,1712835057173,-500.0,0.00032876,2]
[322134330,1712835057184,-916.6,0.00032876,2]
[322134331,1712835057194,-1109.75,0.00032876,2]
[322134332,1712835057204,-500.0,0.00032876,2]
[322134333,1712835057214,-2888.17934022,0.00033345,7]
[322134334,1712835057979,-500.0,0.00032876,2]
[322134335,1712835057991,-500.0,0.00032876,2]
[322134336,1712835058001,-500.0,0.00032876,2]
[322134337,1712835058011,-1323.7730124,0.00033345,7]
[322134338,1712835058034,-1105.98156564,0.00033345,7]
[322134339,1712835058192,-509.30446106,0.00032876,2]
[322134340,1712835058202,-352.37431799,0.00033345,7]
[322134341,1712835058302,-1964.82481855,0.00033345,7]
[322134342,1712835058322,-1848.07050934,0.00033345,7]
[322134343,1712835058343,-428.03097649,0.00033345,7]
[322134344,1712835058371,-500.0,0.00033345,7]
[322134345,1712835058426,-782.59907764,0.00033345,7]
[322134346,1712835058519,-607.154874,0.00033345,7]
[322134347,1712835058531,-357.21337863,0.00033345,7]
[322134348,1712835058556,-840.64392545,0.00033345,7]
[322134349,1712835058578,-675769.54021184,0.00033345,7]
[322134350,1712835058588,-342.99105038,0.00033345,2]
[322134351,1712835058598,-894.0853312,0.00033345,2]
[322134352,1712835058611,-177.46028583,0.00033414,2]
[322134353,1712835058976,-1883.68144432,0.00033418,2]
[322134354,1712835059002,-520.51,0.00033423,2]
[322134355,1712835059011,-498.32,0.00033423,7]
[322134356,1712835059020,-500.0,0.00033424,7]
[322134357,1712835059029,-2000.0,0.00033424,7]
[322134358,1712835059042,-779.92,0.00033424,7]
[322134359,1712835059052,-494.39912203,0.00033424,7]
[322134360,1712835059061,-500.0,0.00033424,7]
[322134361,1712835059070,-500.0,0.00033424,7]
[322134362,1712835059080,-500.0,0.00033424,7]
[322134363,1712835059090,-500.0,0.00033424,7]
[322134364,1712835059099,-500.0,0.00033424,7]
[322134365,1712835059108,-500.0,0.00033424,7]
[322134366,1712835059118,-500.0,0.00033424,7]
[322134367,1712835059127,-500.0,0.00033424,7]
[322134368,1712835059137,-572.54,0.00033424,7]
[322134369,1712835059147,-624.95568716,0.00033424,7]
[322134370,1712835059156,-500.0,0.00033424,7]
[322134371,1712835059166,-500.0,0.00033424,7]
[322134372,1712835059175,-500.0,0.00033424,7]
[322134373,1712835059185,-500.0,0.00033424,7]
[322134374,1712835059195,-500.0,0.00033424,7]
[322134375,1712835059205,-502.92223295,0.00033424,7]
[322134376,1712835059215,-500.0,0.00033424,7]
[322134377,1712835059224,-673.92,0.00033424,7]
[322134378,1712835059235,-500.0,0.00033424,7]
[322134379,1712835059245,-715.77,0.00033424,7]
[322134380,1712835059255,-666.65,0.00033424,7]
[322134381,1712835059265,-610.11,0.00033424,7]
[322134382,1712835059275,-500.0,0.00033424,7]
[322134383,1712835059285,-500.0,0.00033424,7]
[322134384,1712835059297,-500.0,0.00033424,7]
[322134385,1712835059307,-500.0,0.00033424,7]
[322134386,1712835059318,-696.96,0.00033424,7]
[322134387,1712835059334,-500.0,0.00033424,7]
[322134388,1712835059343,-500.0,0.00033424,7]
[322134389,1712835059352,-500.0,0.00033424,7]
[322134390,1712835059363,-500.0,0.00033424,7]
[322134391,1712835059373,-500.0,0.00033424,7]
[322134392,1712835059382,-500.0,0.00033424,7]
[322134393,1712835059391,-500.0,0.00033424,7]
[322134394,1712835059401,-500.0,0.00033424,7]
[322134395,1712835059411,-500.0,0.00033424,7]
[322134396,1712835059421,-500.0,0.00033424,7]
[322134397,1712835059430,-500.0,0.00033424,7]
[322134398,1712835059439,-438.55226695,0.00033424,7]
[322134399,1712835059448,-1089.51,0.00033424,7]
[322134400,1712835059458,-500.0,0.00033424,7]
[322134401,1712835059467,-500.0,0.00033424,7]
[322134402,1712835059477,-565.41,0.00033424,7]
[322134403,1712835059488,-500.0,0.00033424,7]
[322134404,1712835059498,-500.0,0.00033424,7]
[322134405,1712835059508,-500.0,0.00033424,7]
[322134406,1712835059517,-500.0,0.00033424,7]
[322134407,1712835059527,-500.0,0.00033424,7]
[322134408,1712835059536,-500.0,0.00033424,7]
[322134409,1712835059546,-500.0,0.00033424,7]
[322134410,1712835059555,-711.38,0.00033424,7]
[322134411,1712835059564,-500.0,0.00033424,7]
[322134412,1712835059573,-500.0,0.00033424,7]
[322134413,1712835059583,-500.0,0.00033424,7]
[322134414,1712835059592,-500.0,0.00033424,7]
[322134415,1712835059602,-500.0,0.00033424,7]
[322134416,1712835059611,-500.0,0.00033424,7]
[322134417,1712835059620,-500.0,0.00033424,7]
[322134418,1712835059630,-500.0,0.00033424,7]
[322134419,1712835059644,-518.26312227,0.00033424,7]
[322134420,1712835059654,-500.0,0.00033424,7]
[322134421,1712835059664,-716.57,0.00033424,7]
[322134422,1712835059673,-500.0,0.00033424,7]
[322134423,1712835059682,-991.72,0.00033424,7]
[322134424,1712835059691,-500.0,0.00033424,7]
[322134425,1712835059700,-648.31,0.00033424,7]
[322134426,1712835059709,-500.0,0.00033424,7]
[322134427,1712835059740,-500.0,0.00033424,7]
[322134428,1712835059770,-500.0,0.00033424,7]
[322134429,1712835059780,-500.0,0.00033424,7]
[322134430,1712835059790,-500.0,0.00033424,7]
[322134431,1712835059800,-500.0,0.00033424,7]
[322134432,1712835059811,-906.27,0.00033424,7]
[322134433,1712835059824,-500.0,0.00033424,7]
[322134434,1712835059835,-696.2,0.00033424,7]
[322134435,1712835059845,-500.0,0.00033424,7]
[322134436,1712835059859,-500.0,0.00033424,7]
[322134437,1712835059872,-500.0,0.00033424,7]
[322134438,1712835059881,-500.0,0.00033424,7]
[322134439,1712835059891,-1124.75,0.00033424,7]
[322134440,1712835059901,-500.0,0.00033424,7]
[322134441,1712835059910,-500.0,0.00033424,7]
[322134442,1712835059919,-500.0,0.00033424,7]
[322134443,1712835059929,-500.0,0.00033424,7]
[322134444,1712835059938,-500.0,0.00033424,7]
[322134445,1712835059948,-500.0,0.00033424,7]
[322134446,1712835059960,-500.0,0.00033424,7]
[322134447,1712835059970,-500.0,0.00033424,7]
[322134448,1712835059981,-500.0,0.00033424,7]
[322134449,1712835059994,-1046.72,0.00033424,7]
[322134450,1712835060003,-518.33276084,0.00033424,7]
[322134451,1712835060013,-500.0,0.00033424,7]
[322134452,1712835060023,-519.15,0.00033424,7]
[322134453,1712835060033,-500.0,0.00033424,7]
[322134454,1712835060045,-500.0,0.00033424,7]
[322134455,1712835060055,-568.77,0.00033424,7]
[322134456,1712835060065,-516.56,0.00033424,7]
[322134457,1712835060076,-500.0,0.00033424,7]
[322134458,1712835060085,-500.0,0.00033424,7]
[322134459,1712835060095,-500.0,0.00033424,7]
[322134460,1712835060104,-500.0,0.00033424,7]
[322134461,1712835060113,-500.0,0.00033424,7]
[322134462,1712835060123,-467.85744217,0.00033424,7]
[322134463,1712835060132,-500.0,0.00033424,7]
[322134464,1712835060142,-500.0,0.00033424,7]
[322134465,1712835060151,-500.0,0.00033424,7]
[322134466,1712835060160,-500.0,0.00033424,7]
[322134467,1712835060170,-500.0,0.00033424,7]
[322134468,1712835060179,-500.0,0.00033424,7]
[322134469,1712835060188,-500.0,0.00033424,7]
[322134470,1712835060197,-500.0,0.00033424,2]
[322134471,1712835060206,-500.0,0.00033424,7]
[322134472,1712835060216,-500.0,0.00033424,7]
[322134473,1712835060225,-500.0,0.00033424,7]
[322134474,1712835060235,-500.0,0.00033424,7]
[322134475,1712835060255,-500.0,0.00033424,7]
[322134476,1712835060273,-500.0,0.00033424,7]
[322134477,1712835060282,-500.0,0.00033424,7]
[322134478,1712835060292,-500.0,0.00033424,7]
[322134479,1712835060301,-500.0,0.00033424,7]
[322134480,1712835060310,-500.0,0.00033424,7]
[322134481,1712835060319,-500.0,0.00033424,7]
[322134482,1712835060328,-500.0,0.00033424,7]
[322134483,1712835060341,-500.0,0.00033424,7]
[322134484,1712835060350,-500.0,0.00033424,7]
[322134485,1712835060359,-500.0,0.00033424,7]
[322134486,1712835060371,-500.0,0.00033424,7]
[322134487,1712835060387,-500.0,0.00033424,7]
[322134488,1712835060396,-500.0,0.00033424,7]
[322134489,1712835060405,-500.0,0.00033424,7]
[322134490,1712835060416,-500.0,0.00033424,7]
[322134491,1712835060425,-500.0,0.00033424,7]
[322134492,1712835060434,-500.0,0.00033424,7]
[322134493,1712835060443,-500.0,0.00033424,7]
[322134494,1712835060453,-500.0,0.00033424,7]
[322134495,1712835060462,-500.0,0.00033424,7]
[322134496,1712835060471,-500.0,0.00033424,7]
[322134497,1712835060480,-500.0,0.00033424,7]
[322134498,1712835060490,-285.00111286,0.00033424,7]
[322134499,1712835060499,-500.0,0.00033424,7]
[322134500,1712835060508,-500.0,0.00033424,7]
[322134501,1712835060517,-500.0,0.00033424,7]
[322134502,1712835060526,-777.35,0.00033424,7]
[322134503,1712835060536,-542.453793,0.00033424,7]
[322134504,1712835060545,-500.0,0.00033424,7]
[322134505,1712835060554,-500.0,0.00033424,7]
[322134506,1712835060563,-500.0,0.00033424,7]
[322134507,1712835060572,-500.0,0.00033424,7]
[322134508,1712835060582,-624.81,0.00033424,7]
[322134509,1712835060591,-500.0,0.00033424,7]
[322134510,1712835060600,-500.0,0.00033424,7]
[322134511,1712835060609,-500.0,0.00033424,7]
[322134512,1712835060619,-500.0,0.00033424,7]
[322134513,1712835060628,-500.0,0.00033424,7]
[322134514,1712835060638,-507.26,0.00033424,7]
[322134515,1712835060648,-500.0,0.00033424,7]
[322134516,1712835060659,-500.0,0.00033424,7]
[322134517,1712835060670,-500.0,0.00033424,7]
[322134518,1712835060680,-500.0,0.00033424,7]
[322134519,1712835060690,-500.0,0.00033424,7]
[322134520,1712835060699,-510.89501529,0.00033424,7]
[322134521,1712835060709,-500.0,0.00033424,7]
[322134522,1712835060718,-500.0,0.00033424,7]
[322134523,1712835060728,-500.0,0.00033424,7]
[322134524,1712835060738,-616.39,0.00033424,7]
[322134525,1712835060748,-500.0,0.00033424,7]
[322134526,1712835060757,-500.0,0.00033424,7]
[322134527,1712835060767,-500.0,0.00033424,7]
[322134528,1712835060776,-500.0,0.00033424,7]
[322134529,1712835060785,-504.61066254,0.00033424,7]
[322134530,1712835060796,-500.0,0.00033424,7]
[322134531,1712835060805,-500.0,0.00033424,7]
[322134532,1712835060816,-500.0,0.00033424,7]
[322134533,1712835060826,-500.0,0.00033424,7]
[322134534,1712835060835,-690.4,0.00033424,7]
[322134535,1712835060845,-508.45439529,0.00033424,7]
[322134536,1712835060854,-500.0,0.00033424,7]
[322134537,1712835060864,-500.0,0.00033424,7]
[322134538,1712835060874,-500.0,0.00033424,7]
[322134539,1712835060883,-500.0,0.00033424,7]
[322134540,1712835060893,-500.0,0.00033424,7]
[322134541,1712835060902,-500.0,0.00033424,7]
[322134542,1712835060911,-500.0,0.00033424,7]
[322134543,1712835060921,-529.42461102,0.00033424,7]
[322134544,1712835060930,-500.0,0.00033424,7]
[322134545,1712835060939,-578.6644809,0.00033424,7]
[322134546,1712835060948,-500.0,0.00033424,7]
[322134547,1712835060958,-500.0,0.00033424,7]
[322134548,1712835060967,-527.9766273,0.00033424,7]
[322134549,1712835060977,-500.0,0.00033424,7]
[322134550,1712835060986,-500.0,0.00033424,7]
[322134551,1712835060997,-500.0,0.00033424,7]
[322134552,1712835061006,-500.0,0.00033424,7]
[322134553,1712835061016,-500.0,0.00033424,7]
[322134554,1712835061025,-735.72,0.00033424,7]
[322134555,1712835061034,-531.73887064,0.00033424,7]
[322134556,1712835061043,-500.0,0.00033424,7]
[322134557,1712835061053,-500.0,0.00033424,7]
[322134558,1712835061062,-500.0,0.00033424,7]
[322134559,1712835061071,-500.0,0.00033424,7]
[322134560,1712835061080,-500.0,0.00033424,7]
[322134561,1712835061090,-500.0,0.00033424,7]
[322134562,1712835061099,-500.0,0.00033424,7]
[322134563,1712835061108,-500.0,0.00033424,7]
[322134564,1712835061117,-500.0,0.00033424,7]
[322134565,1712835061126,-167.227883,0.00033424,7]
[322134566,1712835061135,-500.0,0.00033424,7]
[322134567,1712835061145,-500.0,0.00033424,7]
[322134568,1712835061154,-581.51,0.00033424,7]
[322134569,1712835061163,-500.0,0.00033424,7]
[322134570,1712835061172,-500.0,0.00033424,7]
[322134571,1712835061182,-500.0,0.00033424,7]
[322134572,1712835061191,-500.0,0.00033424,7]
[322134573,1712835061200,-500.0,0.00033424,7]
[322134574,1712835061209,-513.79004151,0.00033424,7]
[322134575,1712835061219,-560.44,0.00033424,7]
[322134576,1712835061228,-762.27,0.00033424,7]
[322134577,1712835061238,-500.0,0.00033424,7]
[322134578,1712835061248,-500.0,0.00033424,7]
[322134579,1712835061257,-500.0,0.00033424,7]
[322134580,1712835061267,-500.0,0.00033424,7]
[322134581,1712835061277,-500.0,0.00033424,7]
[322134582,1712835061286,-500.0,0.00033424,7]
[322134583,1712835061295,-500.0,0.00033424,7]
[322134584,1712835061305,-665.18,0.00033424,7]
[322134585,1712835061315,-500.0,0.00033424,7]
[322134586,1712835061329,-500.0,0.00033424,7]
[322134587,1712835061341,-500.0,0.00033424,7]
[322134588,1712835061353,-500.0,0.00033424,7]
[322134589,1712835061365,-500.0,0.00033424,7]
[322134590,1712835061376,-500.0,0.00033424,7]
[322134591,1712835061386,-500.0,0.00033424,7]
[322134592,1712835061396,-500.0,0.00033424,7]
[322134593,1712835061408,-500.0,0.00033424,7]
[322134594,1712835061418,-500.0,0.00033424,7]
[322134595,1712835061428,-665.15,0.00033424,7]
[322134596,1712835061438,-500.0,0.00033424,7]
[322134597,1712835061448,-2028.88,0.00033424,7]
[322134598,1712835061458,-500.0,0.00033424,7]
[322134599,1712835061467,-500.0,0.00033424,7]
[322134600,1712835061476,-500.0,0.00033424,7]
[322134601,1712835061486,-500.0,0.00033424,7]
[322134602,1712835061500,-500.0,0.00033424,7]
[322134603,1712835061512,-500.0,0.00033424,7]
[322134604,1712835061520,-500.0,0.00033424,7]
[322134605,1712835061530,-639.26065099,0.00033424,7]
[322134606,1712835061538,-500.0,0.00033424,7]
[322134607,1712835061548,-500.0,0.00033424,7]
[322134608,1712835061557,-500.0,0.00033424,7]
[322134609,1712835061567,-500.0,0.00033424,7]
[322134610,1712835061576,-839.56,0.00033424,7]
[322134611,1712835061584,-500.0,0.00033424,7]
[322134612,1712835061594,-500.0,0.00033424,7]
[322134613,1712835061603,-500.0,0.00033424,7]
[322134614,1712835061612,-500.0,0.00033424,7]
[322134615,1712835061622,-2153.13,0.00033424,7]
[322134616,1712835061631,-500.0,0.00033424,7]
[322134617,1712835061641,-500.0,0.00033424,7]
[322134618,1712835061650,-500.0,0.00033424,7]
[322134619,1712835061661,-500.0,0.00033424,7]
[322134620,1712835061670,-500.0,0.00033424,7]
[322134621,1712835061679,-500.0,0.00033424,7]
[322134622,1712835061688,-503.84087631,0.00033424,7]
[322134623,1712835061698,-592.52,0.00033424,7]
[322134624,1712835061707,-500.0,0.00033424,7]
[322134625,1712835061717,-500.0,0.00033424,7]
[322134626,1712835061726,-521.98,0.00033424,7]
[322134627,1712835061736,-500.0,0.00033424,7]
[322134628,1712835061748,-500.0,0.00033424,7]
[322134629,1712835061757,-500.0,0.00033424,7]
[322134630,1712835061767,-500.0,0.00033424,7]
[322134631,1712835061777,-500.0,0.00033424,7]
[322134632,1712835061786,-500.0,0.00033424,7]
[322134633,1712835061796,-500.0,0.00033424,7]
[322134634,1712835061806,-500.0,0.00033424,7]
[322134635,1712835061815,-500.0,0.00033424,7]
[322134636,1712835061825,-500.0,0.00033424,7]
[322134637,1712835061834,-500.0,0.00033424,7]
[322134638,1712835061843,-500.0,0.00033424,7]
[322134639,1712835061852,-500.0,0.00033424,7]
[322134640,1712835061862,-500.0,0.00033424,7]
[322134641,1712835061872,-500.0,0.00033424,7]
[322134642,1712835061882,-500.0,0.00033424,7]
[322134643,1712835061891,-500.0,0.00033424,7]
[322134644,1712835061900,-500.0,0.00033424,7]
[322134645,1712835061910,-500.0,0.00033424,7]
[322134646,1712835061919,-807.22,0.00033424,7]
[322134647,1712835061929,-500.0,0.00033424,7]
[322134648,1712835061938,-721.75,0.00033424,7]
[322134649,1712835061947,-500.0,0.00033424,7]
[322134650,1712835061957,-500.0,0.00033424,7]
[322134651,1712835061966,-500.0,0.00033424,7]
[322134652,1712835061976,-500.0,0.00033424,7]
[322134653,1712835061985,-500.0,0.00033424,7]
[322134654,1712835061997,-500.0,0.00033424,7]
[322134655,1712835062007,-500.0,0.00033424,7]
[322134656,1712835062017,-598.23035582,0.00033424,7]
[322134657,1712835062027,-500.0,0.00033424,7]
[322134658,1712835062035,-500.0,0.00033424,7]
[322134659,1712835062044,-512.17353301,0.00033424,7]
[322134660,1712835062053,-500.0,0.00033424,7]
[322134661,1712835062062,-500.0,0.00033424,7]
[322134662,1712835062071,-500.0,0.00033424,7]
[322134663,1712835062081,-576.18,0.00033424,7]
[322134664,1712835062090,-500.0,0.00033424,7]
[322134665,1712835062099,-500.0,0.00033424,7]
[322134666,1712835062109,-500.0,0.00033424,7]
[322134667,1712835062118,-686.01,0.00033424,7]